[Event "Early-Titled-Tuesday-Blitz-October-17-2023"]
[Site "Chess.com"]
[Date "2023.10.17"]
[Round "2"]
[White "Hrant_ChessMood"]
[Black "bescmelasti"]
[Result "1-0"]
[WhiteElo "2948"]
[BlackElo "2615"]
[TimeControl "180+1"]
[EndTime "8:18:58 PDT"]
[Termination "Hrant_ChessMood won on time"]

1. c4 {[%clk 0:03:00.9]} 1... e5 {[%clk 0:02:59.6]} 2. e3 {[%clk 0:02:53.6]}
2... Nf6 {[%clk 0:02:58.5]} 3. Nc3 {[%clk 0:02:53.4]} 3... Nc6 {[%clk
0:02:57.2]} 4. Qb3 {[%clk 0:02:50.9]} 4... g6 {[%clk 0:02:52.6]} 5. Nf3 {[%clk
0:02:51.1]} 5... Bg7 {[%clk 0:02:52.7]} 6. Be2 {[%clk 0:02:51.7]} 6... O-O
{[%clk 0:02:52.6]} 7. d4 {[%clk 0:02:51.3]} 7... exd4 {[%clk 0:02:47.1]} 8. exd4
{[%clk 0:02:52.2]} 8... Re8 {[%clk 0:02:32.7]} 9. O-O {[%clk 0:02:52.2]} 9... d6
{[%clk 0:02:33.1]} 10. h3 {[%clk 0:02:45]} 10... Ne4 {[%clk 0:02:32.7]} 11. Be3
{[%clk 0:02:26.9]} 11... Nxc3 {[%clk 0:01:56.2]} 12. bxc3 {[%clk 0:02:25.5]}
12... Na5 {[%clk 0:01:51]} 13. Qa3 {[%clk 0:02:19.8]} 13... b6 {[%clk
0:01:51.2]} 14. c5 {[%clk 0:02:14.9]} 14... Be6 {[%clk 0:01:39.4]} 15. cxd6
{[%clk 0:02:12]} 15... Qxd6 {[%clk 0:01:34.3]} 16. Qa4 {[%clk 0:02:11]} 16...
Bd7 {[%clk 0:01:22.9]} 17. Qc2 {[%clk 0:02:08.2]} 17... Bf5 {[%clk 0:01:22.2]}
18. Bd3 {[%clk 0:02:03.7]} 18... Bxd3 {[%clk 0:01:21]} 19. Qxd3 {[%clk
0:02:04.6]} 19... c5 {[%clk 0:01:17.3]} 20. Rfd1 {[%clk 0:02:04.6]} 20... Rad8
{[%clk 0:01:17.1]} 21. Qb5 {[%clk 0:01:58.7]} 21... cxd4 {[%clk 0:01:09.6]} 22.
cxd4 {[%clk 0:01:54]} 22... Qd5 {[%clk 0:01:05.7]} 23. a4 {[%clk 0:01:54.1]}
23... Nc6 {[%clk 0:01:03]} 24. Rac1 {[%clk 0:01:41.5]} 24... Re6 {[%clk
0:01:01.7]} 25. Qxd5 {[%clk 0:01:31.5]} 25... Rxd5 {[%clk 0:01:00.6]} 26. Ng5
{[%clk 0:01:32.4]} 26... Red6 {[%clk 0:00:48.5]} 27. Ne4 {[%clk 0:01:31.5]}
27... Re6 {[%clk 0:00:49]} 28. Nc3 {[%clk 0:01:26.3]} 28... Rxd4 {[%clk
0:00:26.6]} 29. Bxd4 {[%clk 0:01:23]} 29... Nxd4 {[%clk 0:00:27.5]} 30. Kf1
{[%clk 0:01:22.5]} 30... h5 {[%clk 0:00:27.1]} 31. Nd5 {[%clk 0:01:19.8]} 31...
Rd6 {[%clk 0:00:15.1]} 32. Ne3 {[%clk 0:01:13.7]} 32... Bf6 {[%clk 0:00:11.3]}
33. Rc7 {[%clk 0:01:12.1]} 33... a6 {[%clk 0:00:11.5]} 34. Nc4 {[%clk
0:01:09.5]} 34... Re6 {[%clk 0:00:11.6]} 35. Ne3 {[%clk 0:01:00]} 35... Kg7
{[%clk 0:00:08.5]} 36. Nd5 {[%clk 0:00:58.9]} 36... Be5 {[%clk 0:00:09.1]} 37.
Rb7 {[%clk 0:00:59.1]} 37... b5 {[%clk 0:00:05.7]} 38. f4 {[%clk 0:00:56.1]}
38... Rd6 {[%clk 0:00:04]} 39. fxe5 {[%clk 0:00:47.9]} 39... Rxd5 {[%clk
0:00:04.4]} 40. e6 {[%clk 0:00:48.8]} 40... Rf5+ {[%clk 0:00:01.2]} 41. Kg1
{[%clk 0:00:45.6]} 41... Nxe6 {[%clk 0:00:02.1]} 42. a5 {[%clk 0:00:44]} 42...
b4 {[%clk 0:00:02]} 43. Rd6 {[%clk 0:00:39.3]} 43... Kf6 {[%clk 0:00:01]} 44.
Rxa6 {[%clk 0:00:39]} 1-0

[Event "Early-Titled-Tuesday-Blitz-October-17-2023"]
[Site "Chess.com"]
[Date "2023.10.17"]
[Round "2"]
[White "Fh2411"]
[Black "ActorXu"]
[Result "0-1"]
[WhiteElo "2551"]
[BlackElo "2779"]
[TimeControl "180+1"]
[EndTime "8:19:00 PDT"]
[Termination "ActorXu won on time"]

1. d4 {[%clk 0:03:00.9]} 1... Nf6 {[%clk 0:03:00.1]} 2. c4 {[%clk 0:02:59.8]}
2... e6 {[%clk 0:03:00.8]} 3. Nf3 {[%clk 0:02:59.6]} 3... d5 {[%clk 0:03:00.5]}
4. Nc3 {[%clk 0:02:59.7]} 4... Bb4 {[%clk 0:03:01.1]} 5. Bg5 {[%clk 0:02:59.2]}
5... h6 {[%clk 0:03:00.8]} 6. Bxf6 {[%clk 0:02:53.3]} 6... Qxf6 {[%clk
0:03:01.7]} 7. Rc1 {[%clk 0:02:41.8]} 7... O-O {[%clk 0:02:52.3]} 8. e3 {[%clk
0:02:39.1]} 8... dxc4 {[%clk 0:02:52.2]} 9. Bxc4 {[%clk 0:02:37.3]} 9... c5
{[%clk 0:02:52.4]} 10. O-O {[%clk 0:02:35.4]} 10... cxd4 {[%clk 0:02:52.1]} 11.
Qxd4 {[%clk 0:02:34.9]} 11... Qxd4 {[%clk 0:02:48.9]} 12. Nxd4 {[%clk
0:02:35.8]} 12... Bd7 {[%clk 0:02:47.7]} 13. a3 {[%clk 0:02:17.3]} 13... Be7
{[%clk 0:02:42.6]} 14. Rfd1 {[%clk 0:02:16.2]} 14... Rd8 {[%clk 0:02:38.8]} 15.
Ndb5 {[%clk 0:01:57.3]} 15... Nc6 {[%clk 0:02:27.7]} 16. Nd6 {[%clk 0:01:54.5]}
16... Rab8 {[%clk 0:02:15.8]} 17. h3 {[%clk 0:01:46.4]} 17... Na5 {[%clk
0:02:11.5]} 18. Be2 {[%clk 0:01:39.8]} 18... Nb3 {[%clk 0:02:06.5]} 19. Rb1
{[%clk 0:01:37.7]} 19... Bc6 {[%clk 0:02:03.6]} 20. Nc4 {[%clk 0:01:27.3]} 20...
b6 {[%clk 0:01:51.8]} 21. Ne5 {[%clk 0:01:22.4]} 21... Be8 {[%clk 0:01:46.7]}
22. Bb5 {[%clk 0:01:09.7]} 22... Bf6 {[%clk 0:01:45.9]} 23. f4 {[%clk
0:00:49.9]} 23... Bxb5 {[%clk 0:01:31.3]} 24. Nxb5 {[%clk 0:00:49.2]} 24... a6
{[%clk 0:01:32]} 25. Nc3 {[%clk 0:00:31.7]} 25... Bxe5 {[%clk 0:01:30.2]} 26.
fxe5 {[%clk 0:00:32.6]} 26... Nd2 {[%clk 0:01:22.9]} 27. Rbc1 {[%clk 0:00:30.9]}
27... Nc4 {[%clk 0:01:23.6]} 28. Na4 {[%clk 0:00:24]} 28... Nxe3 {[%clk
0:01:05.7]} 29. Rxd8+ {[%clk 0:00:21.9]} 29... Rxd8 {[%clk 0:01:06.6]} 30. Nxb6
{[%clk 0:00:11.7]} 30... Rd2 {[%clk 0:01:05.9]} 31. Nc4 {[%clk 0:00:10.9]} 31...
Nxc4 {[%clk 0:00:58.2]} 32. Rxc4 {[%clk 0:00:10.5]} 32... Rxb2 {[%clk
0:00:58.9]} 33. Rc6 {[%clk 0:00:09.2]} 33... Rb5 {[%clk 0:00:56.3]} 34. Rxa6
{[%clk 0:00:08.8]} 34... Rxe5 {[%clk 0:00:56.9]} 35. Kf2 {[%clk 0:00:09.6]}
35... g5 {[%clk 0:00:53.2]} 36. Kf3 {[%clk 0:00:08.1]} 36... Kg7 {[%clk
0:00:53.4]} 37. a4 {[%clk 0:00:08.3]} 37... h5 {[%clk 0:00:49.9]} 38. g3 {[%clk
0:00:07.3]} 38... Rc5 {[%clk 0:00:48]} 39. h4 {[%clk 0:00:03.7]} 39... Rc3+
{[%clk 0:00:46.6]} 40. Kf2 {[%clk 0:00:03.5]} 40... gxh4 {[%clk 0:00:43.7]} 41.
gxh4 {[%clk 0:00:04.4]} 41... Rh3 {[%clk 0:00:43.9]} 0-1

[Event "Early-Titled-Tuesday-Blitz-October-17-2023"]
[Site "Chess.com"]
[Date "2023.10.17"]
[Round "2"]
[White "verrbaa"]
[Black "lefonghua"]
[Result "0-1"]
[WhiteElo "2456"]
[BlackElo "2671"]
[TimeControl "180+1"]
[EndTime "8:19:01 PDT"]
[Termination "lefonghua won on time"]

1. Nf3 {[%clk 0:02:59.9]} 1... Nf6 {[%clk 0:03:00.1]} 2. g3 {[%clk 0:02:59.5]}
2... g6 {[%clk 0:03:00.7]} 3. Bg2 {[%clk 0:02:59.6]} 3... Bg7 {[%clk 0:03:01.6]}
4. O-O {[%clk 0:02:59.9]} 4... O-O {[%clk 0:03:02]} 5. c4 {[%clk 0:03:00.2]}
5... c5 {[%clk 0:03:02]} 6. Nc3 {[%clk 0:02:52.3]} 6... Nc6 {[%clk 0:03:01.5]}
7. d4 {[%clk 0:02:43.3]} 7... d6 {[%clk 0:03:01.6]} 8. d5 {[%clk 0:02:27.5]}
8... Na5 {[%clk 0:03:01.3]} 9. Nd2 {[%clk 0:02:27.7]} 9... a6 {[%clk 0:03:00.2]}
10. Qc2 {[%clk 0:02:22.7]} 10... e6 {[%clk 0:02:54.7]} 11. dxe6 {[%clk
0:01:44.6]} 11... Bxe6 {[%clk 0:02:55.6]} 12. b3 {[%clk 0:01:34.2]} 12... Rb8
{[%clk 0:02:39.9]} 13. Bb2 {[%clk 0:01:17.9]} 13... b5 {[%clk 0:02:38.6]} 14.
cxb5 {[%clk 0:01:17.9]} 14... axb5 {[%clk 0:02:39.3]} 15. e4 {[%clk 0:01:11.6]}
15... Nc6 {[%clk 0:02:33.5]} 16. Nd5 {[%clk 0:01:09.9]} 16... Bxd5 {[%clk
0:02:25.9]} 17. exd5 {[%clk 0:01:09.6]} 17... Nb4 {[%clk 0:02:26.4]} 18. Qd1
{[%clk 0:01:03.8]} 18... Nbxd5 {[%clk 0:02:20.8]} 19. Ne4 {[%clk 0:00:59.5]}
19... Rb6 {[%clk 0:02:07.4]} 20. Re1 {[%clk 0:00:36.9]} 20... b4 {[%clk
0:01:59.9]} 21. Qd3 {[%clk 0:00:27.6]} 21... Nxe4 {[%clk 0:01:53]} 22. Bxg7
{[%clk 0:00:26.7]} 22... Kxg7 {[%clk 0:01:52]} 23. Bxe4 {[%clk 0:00:20.9]} 23...
Nc3 {[%clk 0:01:49.7]} 24. a3 {[%clk 0:00:20.9]} 24... Qf6 {[%clk 0:01:44.3]}
25. axb4 {[%clk 0:00:20.8]} 25... Rxb4 {[%clk 0:01:42.7]} 26. Ra6 {[%clk
0:00:18.1]} 26... Rd8 {[%clk 0:01:36.2]} 27. Bd5 {[%clk 0:00:18.4]} 27... Rd4
{[%clk 0:01:18.7]} 28. Qxc3 {[%clk 0:00:18.4]} 28... Rxd5 {[%clk 0:01:19.3]} 29.
Qxf6+ {[%clk 0:00:15.9]} 29... Kxf6 {[%clk 0:01:20.2]} 30. Ra7 {[%clk
0:00:15.9]} 30... Kg7 {[%clk 0:01:13.3]} 31. Ree7 {[%clk 0:00:15.1]} 31... Rf5
{[%clk 0:01:13.5]} 32. Red7 {[%clk 0:00:10.3]} 32... Rxd7 {[%clk 0:01:12.3]} 33.
Rxd7 {[%clk 0:00:11.2]} 33... Rd5 {[%clk 0:01:11.6]} 34. Kg2 {[%clk 0:00:10.7]}
34... Rd3 {[%clk 0:01:11.8]} 35. h4 {[%clk 0:00:09]} 35... h5 {[%clk 0:01:11.2]}
36. Kf1 {[%clk 0:00:08.8]} 36... Kf6 {[%clk 0:01:09.3]} 37. Ke2 {[%clk
0:00:09.2]} 37... Rd4 {[%clk 0:01:09.9]} 38. Ke3 {[%clk 0:00:06.3]} 38... Ke6
{[%clk 0:01:10]} 39. Rb7 {[%clk 0:00:05.4]} 39... Rd1 {[%clk 0:01:02.2]} 40. Ke2
{[%clk 0:00:03.3]} 40... Rb1 {[%clk 0:01:02]} 41. Rb5 {[%clk 0:00:01.1]} 41...
Rb2+ {[%clk 0:00:59]} 42. Kd3 {[%clk 0:00:01.3]} 42... Rxf2 {[%clk 0:00:58.2]}
43. Ke3 {[%clk 0:00:01.1]} 43... Rg2 {[%clk 0:00:58.8]} 44. Kf3 {[%clk
0:00:01.2]} 44... Rb2 {[%clk 0:00:59.4]} 45. Ke3 {[%clk 0:00:01.8]} 45... Ke5
{[%clk 0:00:53.9]} 46. Kf3 {[%clk 0:00:02.1]} 46... f5 {[%clk 0:00:48.6]} 47.
Rb6 {[%clk 0:00:01.7]} 47... Kd5 {[%clk 0:00:42.8]} 48. Rb7 {[%clk 0:00:01.2]}
48... Ke6 {[%clk 0:00:41.8]} 0-1

[Event "Early-Titled-Tuesday-Blitz-October-17-2023"]
[Site "Chess.com"]
[Date "2023.10.17"]
[Round "2"]
[White "LeoWin2012"]
[Black "angryspacevoid"]
[Result "1-0"]
[WhiteElo "2317"]
[BlackElo "2504"]
[TimeControl "180+1"]
[EndTime "8:19:02 PDT"]
[Termination "LeoWin2012 won by checkmate"]

1. e4 {[%clk 0:03:00.9]} 1... Nf6 {[%clk 0:02:55.7]} 2. e5 {[%clk 0:03:00.6]}
2... Nd5 {[%clk 0:02:55.1]} 3. Nc3 {[%clk 0:02:59.8]} 3... Nxc3 {[%clk
0:02:53.8]} 4. dxc3 {[%clk 0:03:00.7]} 4... d6 {[%clk 0:02:54.4]} 5. exd6 {[%clk
0:03:00.4]} 5... exd6 {[%clk 0:02:52.6]} 6. Nf3 {[%clk 0:03:00.3]} 6... Be7
{[%clk 0:02:51.8]} 7. Bd3 {[%clk 0:02:59.3]} 7... Nc6 {[%clk 0:02:50.5]} 8. Be3
{[%clk 0:02:59.2]} 8... Bg4 {[%clk 0:02:48.5]} 9. Qd2 {[%clk 0:02:58.4]} 9...
Ne5 {[%clk 0:02:41.8]} 10. Nxe5 {[%clk 0:02:56.3]} 10... dxe5 {[%clk 0:02:42.7]}
11. f3 {[%clk 0:02:55.2]} 11... Be6 {[%clk 0:02:42.4]} 12. Be4 {[%clk 0:02:51]}
12... c6 {[%clk 0:02:41.5]} 13. a3 {[%clk 0:02:27.2]} 13... Qc7 {[%clk
0:02:38.5]} 14. O-O-O {[%clk 0:02:24.8]} 14... b5 {[%clk 0:02:29.6]} 15. Qe2
{[%clk 0:02:21.8]} 15... a5 {[%clk 0:02:27]} 16. Qf2 {[%clk 0:02:17.8]} 16... b4
{[%clk 0:02:26.2]} 17. Bc5 {[%clk 0:02:17]} 17... bxa3 {[%clk 0:02:22.5]} 18.
Bxe7 {[%clk 0:02:15.8]} 18... axb2+ {[%clk 0:02:21.6]} 19. Kb1 {[%clk
0:02:14.2]} 19... Qxe7 {[%clk 0:02:16.8]} 20. Bxc6+ {[%clk 0:02:13.8]} 20... Kf8
{[%clk 0:02:17]} 21. Qb6 {[%clk 0:01:36.8]} 21... Qa3 {[%clk 0:02:08.9]} 22.
Qxb2 {[%clk 0:01:19.2]} 22... Qxb2+ {[%clk 0:02:07.7]} 23. Kxb2 {[%clk
0:01:20.1]} 23... Rb8+ {[%clk 0:02:07.5]} 24. Ka3 {[%clk 0:01:19.9]} 24... Ke7
{[%clk 0:02:07.3]} 25. Bd5 {[%clk 0:01:12.3]} 25... Rhc8 {[%clk 0:02:01]} 26. c4
{[%clk 0:01:07.9]} 26... f6 {[%clk 0:01:50.3]} 27. Rb1 {[%clk 0:00:54.4]} 27...
Rxb1 {[%clk 0:01:43.1]} 28. Rxb1 {[%clk 0:00:55.3]} 28... Bxd5 {[%clk
0:01:43.6]} 29. cxd5 {[%clk 0:00:55.4]} 29... Rxc2 {[%clk 0:01:44.3]} 30. Rb7+
{[%clk 0:00:55.6]} 30... Kf8 {[%clk 0:01:42.7]} 31. d6 {[%clk 0:00:50]} 31...
Rxg2 {[%clk 0:01:40.3]} 32. Rb8+ {[%clk 0:00:44.9]} 32... Kf7 {[%clk 0:01:36.1]}
33. d7 {[%clk 0:00:45.8]} 33... Rd2 {[%clk 0:01:28.7]} 34. d8=Q {[%clk
0:00:45.2]} 34... Rxd8 {[%clk 0:01:29.3]} 35. Rxd8 {[%clk 0:00:46]} 35... Ke6
{[%clk 0:01:25]} 36. Ka4 {[%clk 0:00:35.1]} 36... Kf5 {[%clk 0:01:20.4]} 37.
Kxa5 {[%clk 0:00:34.1]} 37... Kf4 {[%clk 0:01:18.1]} 38. Rd7 {[%clk 0:00:30.9]}
38... Kxf3 {[%clk 0:01:04.2]} 39. Rxg7 {[%clk 0:00:31]} 39... e4 {[%clk
0:01:02.9]} 40. Rxh7 {[%clk 0:00:25.9]} 40... e3 {[%clk 0:01:03.3]} 41. Re7
{[%clk 0:00:25.9]} 41... e2 {[%clk 0:01:00.1]} 42. h4 {[%clk 0:00:25.5]} 42...
Kg4 {[%clk 0:01:00.5]} 43. Rxe2 {[%clk 0:00:23.7]} 43... Kxh4 {[%clk 0:01:00.9]}
44. Kb4 {[%clk 0:00:24]} 44... f5 {[%clk 0:01:01.4]} 45. Kc3 {[%clk 0:00:24.1]}
45... f4 {[%clk 0:01:01.8]} 46. Kd2 {[%clk 0:00:24.6]} 46... Kg3 {[%clk
0:01:02.4]} 47. Ke1 {[%clk 0:00:24.2]} 47... f3 {[%clk 0:01:01.5]} 48. Rf2
{[%clk 0:00:24.7]} 48... Kf4 {[%clk 0:01:02.1]} 49. Kd2 {[%clk 0:00:24.5]} 49...
Ke4 {[%clk 0:01:02.6]} 50. Rf1 {[%clk 0:00:23.3]} 50... Kf4 {[%clk 0:01:03.1]}
51. Kd3 {[%clk 0:00:23]} 51... Kg3 {[%clk 0:00:56.5]} 52. Ke3 {[%clk 0:00:22.6]}
52... Kg2 {[%clk 0:00:43.6]} 53. Rxf3 {[%clk 0:00:23.5]} 53... Kh1 {[%clk
0:00:44.5]} 54. Kf2 {[%clk 0:00:21.6]} 54... Kh2 {[%clk 0:00:43.9]} 55. Rg3
{[%clk 0:00:20.5]} 55... Kh1 {[%clk 0:00:44.8]} 56. Rh3# {[%clk 0:00:21.4]} 1-0

[Event "Early-Titled-Tuesday-Blitz-October-17-2023"]
[Site "Chess.com"]
[Date "2023.10.17"]
[Round "2"]
[White "Szczor"]
[Black "szefru"]
[Result "1-0"]
[WhiteElo "2530"]
[BlackElo "2320"]
[TimeControl "180+1"]
[EndTime "8:19:04 PDT"]
[Termination "Szczor won on time"]

1. d4 {[%clk 0:02:58.2]} 1... Nf6 {[%clk 0:02:56.4]} 2. c4 {[%clk 0:02:58]} 2...
g6 {[%clk 0:02:56.2]} 3. Nc3 {[%clk 0:02:57.9]} 3... Bg7 {[%clk 0:02:56.9]} 4.
e4 {[%clk 0:02:57.9]} 4... d6 {[%clk 0:02:57.7]} 5. f3 {[%clk 0:02:57.1]} 5...
O-O {[%clk 0:02:58]} 6. Be3 {[%clk 0:02:57.4]} 6... c5 {[%clk 0:02:58.3]} 7.
Nge2 {[%clk 0:02:56.3]} 7... cxd4 {[%clk 0:02:52.1]} 8. Nxd4 {[%clk 0:02:56.2]}
8... Nc6 {[%clk 0:02:52.8]} 9. Qd2 {[%clk 0:02:55.8]} 9... Nxd4 {[%clk
0:02:51.4]} 10. Bxd4 {[%clk 0:02:55.7]} 10... Be6 {[%clk 0:02:52.3]} 11. Be2
{[%clk 0:02:54.8]} 11... Rc8 {[%clk 0:02:27]} 12. b3 {[%clk 0:02:54]} 12... Nd7
{[%clk 0:02:23.7]} 13. Be3 {[%clk 0:02:46]} 13... b5 {[%clk 0:02:19.4]} 14. O-O
{[%clk 0:02:21.4]} 14... bxc4 {[%clk 0:02:15]} 15. b4 {[%clk 0:02:21.9]} 15...
Nb6 {[%clk 0:02:04.6]} 16. a4 {[%clk 0:02:14.6]} 16... d5 {[%clk 0:02:02.2]} 17.
a5 {[%clk 0:02:06.2]} 17... d4 {[%clk 0:02:01.8]} 18. axb6 {[%clk 0:01:23.1]}
18... dxe3 {[%clk 0:02:00.5]} 19. Qxd8 {[%clk 0:01:23.2]} 19... Rfxd8 {[%clk
0:01:59.2]} 20. bxa7 {[%clk 0:01:12.7]} 20... Bxc3 {[%clk 0:01:58.6]} 21. b5
{[%clk 0:01:13.2]} 21... Bxa1 {[%clk 0:01:48.1]} 22. Rxa1 {[%clk 0:01:14.1]}
22... c3 {[%clk 0:01:36.6]} 23. b6 {[%clk 0:01:04.4]} 23... c2 {[%clk
0:01:36.3]} 24. Rc1 {[%clk 0:01:04.7]} 24... Bb3 {[%clk 0:01:24.3]} 25. b7
{[%clk 0:00:57.5]} 25... Ra8 {[%clk 0:01:09.7]} 26. bxa8=Q {[%clk 0:00:45.7]}
26... Rxa8 {[%clk 0:01:10.6]} 27. Bd3 {[%clk 0:00:33.8]} 27... Rxa7 {[%clk
0:01:10.8]} 28. Kf1 {[%clk 0:00:34.3]} 28... Rd7 {[%clk 0:01:03.1]} 29. Ke2
{[%clk 0:00:33.2]} 29... Rc7 {[%clk 0:00:30.8]} 30. Kxe3 {[%clk 0:00:32.5]}
30... e5 {[%clk 0:00:29.8]} 31. Kd2 {[%clk 0:00:30.7]} 31... Kg7 {[%clk
0:00:20.6]} 32. Bxc2 {[%clk 0:00:30.9]} 32... Bxc2 {[%clk 0:00:18.5]} 33. Rxc2
{[%clk 0:00:31.8]} 33... Rd7+ {[%clk 0:00:06.7]} 34. Ke3 {[%clk 0:00:31.6]}
34... Kf6 {[%clk 0:00:07]} 35. h4 {[%clk 0:00:30.1]} 35... g5 {[%clk 0:00:05.9]}
36. Rc6+ {[%clk 0:00:28.2]} 36... Kg7 {[%clk 0:00:06]} 37. hxg5 {[%clk
0:00:28.6]} 37... Ra7 {[%clk 0:00:05.2]} 38. Kf2 {[%clk 0:00:25.7]} 38... Ra2+
{[%clk 0:00:03.7]} 39. Kg3 {[%clk 0:00:26]} 39... Rd2 {[%clk 0:00:02.2]} 40. Kh3
{[%clk 0:00:22.3]} 1-0

[Event "Early-Titled-Tuesday-Blitz-October-17-2023"]
[Site "Chess.com"]
[Date "2023.10.17"]
[Round "2"]
[White "karinachess1"]
[Black "adotand"]
[Result "1/2-1/2"]
[WhiteElo "2597"]
[BlackElo "2859"]
[TimeControl "180+1"]
[EndTime "8:19:06 PDT"]
[Termination "Game drawn by repetition"]

1. d4 {[%clk 0:03:00.9]} 1... Nf6 {[%clk 0:03:00]} 2. c4 {[%clk 0:02:59.4]} 2...
g6 {[%clk 0:03:00.3]} 3. Nc3 {[%clk 0:02:58.4]} 3... Bg7 {[%clk 0:03:00.9]} 4.
g3 {[%clk 0:02:57.9]} 4... c5 {[%clk 0:02:59.1]} 5. Nf3 {[%clk 0:02:55.9]} 5...
cxd4 {[%clk 0:02:58.9]} 6. Nxd4 {[%clk 0:02:56.8]} 6... Nc6 {[%clk 0:02:59.4]}
7. Nc2 {[%clk 0:02:57.3]} 7... h5 {[%clk 0:02:59.4]} 8. h4 {[%clk 0:02:55.9]}
8... d6 {[%clk 0:02:59.4]} 9. Bg2 {[%clk 0:02:55.9]} 9... Ng4 {[%clk 0:02:59.7]}
10. O-O {[%clk 0:02:44.8]} 10... Bd7 {[%clk 0:02:58.3]} 11. Nd5 {[%clk
0:02:39.3]} 11... O-O {[%clk 0:02:54.1]} 12. Rb1 {[%clk 0:02:30.7]} 12... Qa5
{[%clk 0:02:47.7]} 13. a3 {[%clk 0:02:28.7]} 13... Nf6 {[%clk 0:02:24.8]} 14.
Bg5 {[%clk 0:02:23.5]} 14... Qc5 {[%clk 0:02:14.5]} 15. b4 {[%clk 0:01:42]}
15... Qxc4 {[%clk 0:02:08]} 16. Nce3 {[%clk 0:01:42.4]} 16... Qa2 {[%clk
0:01:55.5]} 17. Ra1 {[%clk 0:01:24.6]} 17... Qb2 {[%clk 0:01:19.6]} 18. Nc4
{[%clk 0:01:14.5]} 18... Qd4 {[%clk 0:01:12]} 19. Nxe7+ {[%clk 0:01:10.3]} 19...
Kh7 {[%clk 0:01:11.7]} 20. Qxd4 {[%clk 0:00:43.7]} 20... Nxd4 {[%clk 0:01:11.9]}
21. Nxd6 {[%clk 0:00:44.6]} 21... Nxe2+ {[%clk 0:01:12.3]} 22. Kh1 {[%clk
0:00:44.2]} 22... Ng4 {[%clk 0:01:03.4]} 23. Rae1 {[%clk 0:00:36.5]} 23... Nc3
{[%clk 0:01:01]} 24. Nxb7 {[%clk 0:00:32.6]} 24... Bb5 {[%clk 0:00:58.8]} 25.
Nd6 {[%clk 0:00:20.4]} 25... Bxf1 {[%clk 0:00:58.7]} 26. Bxa8 {[%clk 0:00:20.9]}
26... Nxf2+ {[%clk 0:00:47.4]} 27. Kg1 {[%clk 0:00:18.8]} 27... Nh3+ {[%clk
0:00:47.8]} 28. Kxf1 {[%clk 0:00:18.9]} 28... Nxg5 {[%clk 0:00:48.1]} 29. hxg5
{[%clk 0:00:15.8]} 29... Rxa8 {[%clk 0:00:48.3]} 30. Nc6 {[%clk 0:00:13.8]}
30... Nd5 {[%clk 0:00:42.6]} 31. Kf2 {[%clk 0:00:11.9]} 31... Kg8 {[%clk
0:00:36.1]} 32. Kf3 {[%clk 0:00:11.9]} 32... Bf8 {[%clk 0:00:36]} 33. Ne4 {[%clk
0:00:11.5]} 33... a6 {[%clk 0:00:32.6]} 34. Rd1 {[%clk 0:00:11.1]} 34... Ne7
{[%clk 0:00:27.9]} 35. Nf6+ {[%clk 0:00:11.7]} 35... Kg7 {[%clk 0:00:28.6]} 36.
Ne5 {[%clk 0:00:11.2]} 36... Ra7 {[%clk 0:00:26.6]} 37. Rd8 {[%clk 0:00:10.6]}
37... Nf5 {[%clk 0:00:23.4]} 38. Ne8+ {[%clk 0:00:08.9]} 38... Kg8 {[%clk
0:00:24]} 39. Nf6+ {[%clk 0:00:09.3]} 39... Kg7 {[%clk 0:00:24.6]} 40. Ne8+
{[%clk 0:00:09.2]} 40... Kh8 {[%clk 0:00:22.7]} 41. Nf6 {[%clk 0:00:07.8]} 41...
Kg7 {[%clk 0:00:21.7]} 1/2-1/2

[Event "Early-Titled-Tuesday-Blitz-October-17-2023"]
[Site "Chess.com"]
[Date "2023.10.17"]
[Round "2"]
[White "InitiatingASC"]
[Black "Ermito2020"]
[Result "1-0"]
[WhiteElo "2367"]
[BlackElo "2587"]
[TimeControl "180+1"]
[EndTime "8:19:06 PDT"]
[Termination "InitiatingASC won by checkmate"]

1. e4 {[%clk 0:02:53.8]} 1... e6 {[%clk 0:02:59.8]} 2. Nf3 {[%clk 0:02:52.9]}
2... d5 {[%clk 0:03:00.7]} 3. Nc3 {[%clk 0:02:53.2]} 3... Nf6 {[%clk 0:02:58.4]}
4. exd5 {[%clk 0:02:48.3]} 4... exd5 {[%clk 0:02:58.1]} 5. d4 {[%clk 0:02:46.1]}
5... c5 {[%clk 0:02:57.6]} 6. Bb5+ {[%clk 0:02:43.8]} 6... Nc6 {[%clk
0:02:55.3]} 7. O-O {[%clk 0:02:43.4]} 7... Be7 {[%clk 0:02:51.3]} 8. h3 {[%clk
0:02:41.9]} 8... O-O {[%clk 0:02:49.8]} 9. dxc5 {[%clk 0:02:39.2]} 9... Bxc5
{[%clk 0:02:45.3]} 10. Bg5 {[%clk 0:02:38.8]} 10... Be6 {[%clk 0:02:43]} 11. Qd2
{[%clk 0:02:15.7]} 11... a6 {[%clk 0:02:00.1]} 12. Ba4 {[%clk 0:02:00.1]} 12...
Be7 {[%clk 0:01:02.1]} 13. Rad1 {[%clk 0:01:50.7]} 13... Qb6 {[%clk 0:00:59.4]}
14. Bb3 {[%clk 0:01:34.3]} 14... Ne4 {[%clk 0:00:59.2]} 15. Nxe4 {[%clk
0:00:33.2]} 15... dxe4 {[%clk 0:01:00.1]} 16. Bxe7 {[%clk 0:00:30.3]} 16... Nxe7
{[%clk 0:00:58.1]} 17. Ng5 {[%clk 0:00:29.7]} 17... Bxb3 {[%clk 0:00:52.8]} 18.
axb3 {[%clk 0:00:27.8]} 18... f5 {[%clk 0:00:48.2]} 19. Qd7 {[%clk 0:00:23.7]}
19... Qf6 {[%clk 0:00:45.4]} 20. Ne6 {[%clk 0:00:18.6]} 20... Rfc8 {[%clk
0:00:39.7]} 21. Nf4 {[%clk 0:00:12.4]} 21... Rxc2 {[%clk 0:00:30]} 22. Qxb7
{[%clk 0:00:12.1]} 22... Rf8 {[%clk 0:00:29.4]} 23. Nd5 {[%clk 0:00:11.5]} 23...
Nxd5 {[%clk 0:00:28.9]} 24. Qxd5+ {[%clk 0:00:12.1]} 24... Kh8 {[%clk
0:00:29.6]} 25. Ra1 {[%clk 0:00:11.5]} 25... Rxb2 {[%clk 0:00:27.3]} 26. Qc4
{[%clk 0:00:11.1]} 26... Qg5 {[%clk 0:00:20.6]} 27. Rxa6 {[%clk 0:00:09.6]}
27... e3 {[%clk 0:00:20.5]} 28. Qc5 {[%clk 0:00:09.8]} 28... exf2+ {[%clk
0:00:18.5]} 29. Rxf2 {[%clk 0:00:10.1]} 29... Rb1+ {[%clk 0:00:17.8]} 30. Kh2
{[%clk 0:00:10]} 30... Qd8 {[%clk 0:00:14.7]} 31. Qe5 {[%clk 0:00:06.9]} 31...
h6 {[%clk 0:00:13.6]} 32. Rxh6+ {[%clk 0:00:05.9]} 32... Kg8 {[%clk 0:00:12.4]}
33. Rg6 {[%clk 0:00:06.1]} 33... Rf7 {[%clk 0:00:11.9]} 34. Rxf5 {[%clk
0:00:05.5]} 34... Rxf5 {[%clk 0:00:11.3]} 35. Qxg7# {[%clk 0:00:05.4]} 1-0